[Event "Late-Titled-Tuesday-Blitz-July-09-2024"]
[Site "Chess.com"]
[Date "2024.07.09"]
[Round "9"]
[White "Al_Shima"]
[Black "Os55555"]
[Result "1-0"]
[WhiteElo "2498"]
[BlackElo "2307"]
[TimeControl "180+1"]
[EndTime "15:43:52 PDT"]
[Termination "Al_Shima won by resignation"]

1. b3 {[%clk 0:02:53.5]} 1... Nf6 {[%clk 0:02:55.9]} 2. Bb2 {[%clk 0:02:52]}
2... e6 {[%clk 0:02:56.3]} 3. e3 {[%clk 0:02:48.6]} 3... g6 {[%clk 0:02:56.2]}
4. g3 {[%clk 0:02:47]} 4... Bg7 {[%clk 0:02:56.6]} 5. Bg2 {[%clk 0:02:47.3]}
5... O-O {[%clk 0:02:57]} 6. Ne2 {[%clk 0:02:46.9]} 6... Nc6 {[%clk 0:02:55.8]}
7. O-O {[%clk 0:02:46.7]} 7... d5 {[%clk 0:02:51.3]} 8. d3 {[%clk 0:02:46.6]}
8... b6 {[%clk 0:02:50.9]} 9. Nd2 {[%clk 0:02:45.5]} 9... Bb7 {[%clk 0:02:51.1]}
10. a3 {[%clk 0:02:44.4]} 10... a5 {[%clk 0:02:41.9]} 11. a4 {[%clk 0:02:43.7]}
11... Qe7 {[%clk 0:02:39.9]} 12. Ba3 {[%clk 0:02:42.6]} 12... Qd7 {[%clk
0:02:35.5]} 13. Bxf8 {[%clk 0:02:41.8]} 13... Rxf8 {[%clk 0:02:36.4]} 14. d4
{[%clk 0:02:41]} 14... e5 {[%clk 0:02:33.6]} 15. dxe5 {[%clk 0:02:37.8]} 15...
Nxe5 {[%clk 0:02:33.4]} 16. Nf3 {[%clk 0:02:35.9]} 16... Ne4 {[%clk 0:02:31.5]}
17. Nxe5 {[%clk 0:02:28.9]} 17... Bxe5 {[%clk 0:02:32.4]} 18. Rb1 {[%clk
0:02:22]} 18... Qe6 {[%clk 0:02:21.6]} 19. Nd4 {[%clk 0:02:00.8]} 19... Qf6
{[%clk 0:02:18.9]} 20. Bxe4 {[%clk 0:01:55.6]} 20... dxe4 {[%clk 0:02:19.8]} 21.
c3 {[%clk 0:01:35.9]} 21... Ba6 {[%clk 0:02:10.1]} 22. Re1 {[%clk 0:01:32.4]}
22... Bd3 {[%clk 0:02:08.3]} 23. Rc1 {[%clk 0:01:30.5]} 23... h5 {[%clk
0:02:08.3]} 24. h4 {[%clk 0:01:27.1]} 24... g5 {[%clk 0:01:59]} 25. Qxh5 {[%clk
0:01:26]} 25... gxh4 {[%clk 0:01:58.5]} 26. Qxh4 {[%clk 0:01:25.2]} 26... Qxh4
{[%clk 0:01:43.6]} 27. gxh4 {[%clk 0:01:26.1]} 27... Kg7 {[%clk 0:01:43.9]} 28.
f4 {[%clk 0:01:19.2]} 28... exf3 {[%clk 0:01:41.7]} 29. Nxf3 {[%clk 0:01:18.9]}
29... Bf6 {[%clk 0:01:39.5]} 30. Kf2 {[%clk 0:01:18.4]} 30... Rh8 {[%clk
0:01:36]} 31. Rg1+ {[%clk 0:01:05]} 31... Kf8 {[%clk 0:01:34.9]} 32. Rg4 {[%clk
0:00:54.5]} 32... Ke7 {[%clk 0:01:13.2]} 33. Rf4 {[%clk 0:00:51.9]} 33... Rh5
{[%clk 0:01:06.6]} 34. e4 {[%clk 0:00:43.5]} 34... Bg7 {[%clk 0:00:43.2]} 35.
Ke3 {[%clk 0:00:41.5]} 35... Bh6 {[%clk 0:00:37.9]} 36. Ng5 {[%clk 0:00:40]}
36... Ba6 {[%clk 0:00:17.9]} 37. Rxf7+ {[%clk 0:00:39]} 37... Ke8 {[%clk
0:00:18.3]} 38. Rf5 {[%clk 0:00:28.2]} 38... Bc8 {[%clk 0:00:15.9]} 39. Re5+
{[%clk 0:00:27.3]} 39... Kf8 {[%clk 0:00:14.6]} 40. Rf1+ {[%clk 0:00:27]} 40...
Kg8 {[%clk 0:00:14.6]} 41. Re8+ {[%clk 0:00:26.6]} 1-0

[Event "Late-Titled-Tuesday-Blitz-July-09-2024"]
[Site "Chess.com"]
[Date "2024.07.09"]
[Round "9"]
[White "rpragchess"]
[Black "ChessLover0108"]
[Result "0-1"]
[WhiteElo "3091"]
[BlackElo "2954"]
[TimeControl "180+1"]
[EndTime "15:43:54 PDT"]
[Termination "ChessLover0108 won by checkmate"]

1. d4 {[%clk 0:03:00.9]} 1... Nf6 {[%clk 0:02:59.8]} 2. Bg5 {[%clk 0:03:00.9]}
2... d5 {[%clk 0:02:52.2]} 3. e3 {[%clk 0:02:55.6]} 3... e6 {[%clk 0:02:52.3]}
4. Nf3 {[%clk 0:02:53.6]} 4... Nbd7 {[%clk 0:02:50.5]} 5. Nbd2 {[%clk
0:02:51.8]} 5... Be7 {[%clk 0:02:45.3]} 6. Bd3 {[%clk 0:02:50.1]} 6... b6 {[%clk
0:02:33.6]} 7. e4 {[%clk 0:02:27.1]} 7... dxe4 {[%clk 0:02:32.3]} 8. Nxe4 {[%clk
0:02:26.1]} 8... Bb7 {[%clk 0:02:32.5]} 9. Nxf6+ {[%clk 0:02:25.8]} 9... Nxf6
{[%clk 0:02:23.6]} 10. Ne5 {[%clk 0:02:18.7]} 10... O-O {[%clk 0:02:20.1]} 11.
Qd2 {[%clk 0:02:18.1]} 11... Ne4 {[%clk 0:01:54.5]} 12. Bxe7 {[%clk 0:02:16]}
12... Qxe7 {[%clk 0:01:55.4]} 13. Bxe4 {[%clk 0:01:34.3]} 13... Bxe4 {[%clk
0:01:56.3]} 14. O-O-O {[%clk 0:01:31.2]} 14... Rad8 {[%clk 0:01:56.1]} 15. Qe3
{[%clk 0:01:29.9]} 15... Bb7 {[%clk 0:01:54.7]} 16. f3 {[%clk 0:01:28.7]} 16...
Rd5 {[%clk 0:01:53.8]} 17. Kb1 {[%clk 0:01:25.6]} 17... Rfd8 {[%clk 0:01:54.2]}
18. Rd3 {[%clk 0:01:20.5]} 18... h6 {[%clk 0:01:53.8]} 19. Rhd1 {[%clk
0:01:19.4]} 19... Qh4 {[%clk 0:01:38.7]} 20. h3 {[%clk 0:01:17.3]} 20... Qg3
{[%clk 0:01:25]} 21. Qd2 {[%clk 0:00:48.4]} 21... c5 {[%clk 0:01:09.2]} 22. Qe2
{[%clk 0:00:32.7]} 22... cxd4 {[%clk 0:01:02.4]} 23. Re1 {[%clk 0:00:26]} 23...
Ba6 {[%clk 0:01:01.9]} 24. Nxf7 {[%clk 0:00:24.8]} 24... Kxf7 {[%clk 0:00:55.9]}
25. Qxe6+ {[%clk 0:00:23.8]} 25... Kf8 {[%clk 0:00:56.5]} 26. Ra3 {[%clk
0:00:20.3]} 26... Bc8 {[%clk 0:00:50.4]} 27. Qe7+ {[%clk 0:00:19.6]} 27... Kg8
{[%clk 0:00:50.8]} 28. Rxa7 {[%clk 0:00:19.8]} 28... Bf5 {[%clk 0:00:46.7]} 29.
Qf7+ {[%clk 0:00:17.8]} 29... Kh7 {[%clk 0:00:43.5]} 30. Ree7 {[%clk 0:00:17]}
30... d3 {[%clk 0:00:27.3]} 31. cxd3 {[%clk 0:00:17.1]} 31... Bxd3+ {[%clk
0:00:24]} 32. Ka1 {[%clk 0:00:17]} 32... R8d7 {[%clk 0:00:17.5]} 33. Raxd7
{[%clk 0:00:05]} 33... Rxd7 {[%clk 0:00:18]} 34. a3 {[%clk 0:00:04.2]} 34...
Rxe7 {[%clk 0:00:18.1]} 35. Qxe7 {[%clk 0:00:04.6]} 35... Qxg2 {[%clk
0:00:18.7]} 36. Qe3 {[%clk 0:00:03.5]} 36... Qf1+ {[%clk 0:00:18.4]} 37. Ka2
{[%clk 0:00:03.3]} 37... Qd1 {[%clk 0:00:19]} 38. b4 {[%clk 0:00:02]} 38... Qb1#
{[%clk 0:00:18.7]} 0-1

[Event "Late-Titled-Tuesday-Blitz-July-09-2024"]
[Site "Chess.com"]
[Date "2024.07.09"]
[Round "9"]
[White "krzyzan94"]
[Black "Kirill_Klukin"]
[Result "1-0"]
[WhiteElo "2791"]
[BlackElo "2915"]
[TimeControl "180+1"]
[EndTime "15:43:55 PDT"]
[Termination "krzyzan94 won by resignation"]

1. e4 {[%clk 0:03:00.9]} 1... c5 {[%clk 0:02:59.1]} 2. Nf3 {[%clk 0:03:00.8]}
2... g6 {[%clk 0:02:59.4]} 3. Bc4 {[%clk 0:02:59.1]} 3... Bg7 {[%clk 0:02:59.3]}
4. c3 {[%clk 0:02:57.8]} 4... e6 {[%clk 0:02:59.6]} 5. d4 {[%clk 0:02:57.3]}
5... cxd4 {[%clk 0:02:55.7]} 6. O-O {[%clk 0:02:57.3]} 6... Nc6 {[%clk
0:02:53.8]} 7. cxd4 {[%clk 0:02:47.8]} 7... d5 {[%clk 0:02:53.9]} 8. exd5 {[%clk
0:02:40]} 8... exd5 {[%clk 0:02:54.8]} 9. Re1+ {[%clk 0:02:37.1]} 9... Nge7
{[%clk 0:02:55]} 10. Bb5 {[%clk 0:02:27.8]} 10... O-O {[%clk 0:02:53.2]} 11. Bg5
{[%clk 0:02:28.4]} 11... h6 {[%clk 0:02:52.9]} 12. Bh4 {[%clk 0:02:13.8]} 12...
g5 {[%clk 0:02:52.6]} 13. Bg3 {[%clk 0:02:14]} 13... Bg4 {[%clk 0:02:43.5]} 14.
Nbd2 {[%clk 0:01:46.2]} 14... Nxd4 {[%clk 0:02:38.9]} 15. Bd3 {[%clk 0:01:45.8]}
15... Nef5 {[%clk 0:02:23.1]} 16. Qa4 {[%clk 0:01:33.4]} 16... Nxf3+ {[%clk
0:01:57.9]} 17. Nxf3 {[%clk 0:01:25.6]} 17... Nxg3 {[%clk 0:01:36.7]} 18. Qxg4
{[%clk 0:01:13.1]} 18... Ne4 {[%clk 0:01:36.8]} 19. Bxe4 {[%clk 0:00:57.3]}
19... dxe4 {[%clk 0:01:36.9]} 20. Qxe4 {[%clk 0:00:58.1]} 20... Qb6 {[%clk
0:01:37.6]} 21. Rab1 {[%clk 0:00:55.6]} 21... Rac8 {[%clk 0:01:36.5]} 22. b3
{[%clk 0:00:54.2]} 22... Qa5 {[%clk 0:01:33.2]} 23. h4 {[%clk 0:00:52.3]} 23...
Bf6 {[%clk 0:01:15.8]} 24. hxg5 {[%clk 0:00:51.5]} 24... hxg5 {[%clk 0:01:16]}
25. Qxb7 {[%clk 0:00:48.1]} 25... Qxa2 {[%clk 0:00:45.2]} 26. Nh2 {[%clk
0:00:44.7]} 26... Bd4 {[%clk 0:00:31.7]} 27. Ng4 {[%clk 0:00:43.7]} 27... Qc2
{[%clk 0:00:26.5]} 28. Qf3 {[%clk 0:00:39.4]} 28... Qg6 {[%clk 0:00:22.9]} 29.
Rbd1 {[%clk 0:00:38]} 29... Rc3 {[%clk 0:00:16]} 30. Qd5 {[%clk 0:00:33.9]}
30... Bb6 {[%clk 0:00:11.3]} 31. Qe5 {[%clk 0:00:30.1]} 31... Rc5 {[%clk
0:00:07.8]} 32. Qb2 {[%clk 0:00:25.2]} 32... Rf5 {[%clk 0:00:06.5]} 33. Re5
{[%clk 0:00:20.6]} 33... Qg7 {[%clk 0:00:06.4]} 34. Nh6+ {[%clk 0:00:19.5]}
34... Qxh6 {[%clk 0:00:06.8]} 35. Rxf5 {[%clk 0:00:20.2]} 35... Qg6 {[%clk
0:00:06.4]} 36. Rfd5 {[%clk 0:00:18.7]} 36... g4 {[%clk 0:00:04.6]} 37. Qd2
{[%clk 0:00:18.1]} 37... g3 {[%clk 0:00:04.4]} 38. Rg5 {[%clk 0:00:18.4]} 38...
gxf2+ {[%clk 0:00:03.4]} 39. Kf1 {[%clk 0:00:18.5]} 39... Re8 {[%clk 0:00:02.3]}
40. Rxg6+ {[%clk 0:00:18.9]} 1-0

[Event "Late-Titled-Tuesday-Blitz-July-09-2024"]
[Site "Chess.com"]
[Date "2024.07.09"]
[Round "9"]
[White "SRob2003"]
[Black "ninjatrick"]
[Result "1-0"]
[WhiteElo "2719"]
[BlackElo "2502"]
[TimeControl "180+1"]
[EndTime "15:43:55 PDT"]
[Termination "SRob2003 won by checkmate"]

1. c4 {[%clk 0:03:00.9]} 1... e5 {[%clk 0:02:58.1]} 2. g3 {[%clk 0:03:00.9]}
2... Nc6 {[%clk 0:02:58.4]} 3. Bg2 {[%clk 0:03:01.1]} 3... g6 {[%clk 0:02:58.9]}
4. Nc3 {[%clk 0:03:01.5]} 4... Bg7 {[%clk 0:02:58.7]} 5. Nf3 {[%clk 0:03:02]}
5... d6 {[%clk 0:02:54.4]} 6. O-O {[%clk 0:03:01]} 6... f5 {[%clk 0:02:54.7]} 7.
Rb1 {[%clk 0:03:00.4]} 7... a5 {[%clk 0:02:53.4]} 8. d3 {[%clk 0:02:59.5]} 8...
Nf6 {[%clk 0:02:53.9]} 9. a3 {[%clk 0:02:56.3]} 9... O-O {[%clk 0:02:53.9]} 10.
b4 {[%clk 0:02:56.7]} 10... axb4 {[%clk 0:02:54.8]} 11. axb4 {[%clk 0:02:57.6]}
11... f4 {[%clk 0:02:51.5]} 12. b5 {[%clk 0:02:56.8]} 12... Ne7 {[%clk
0:02:42.3]} 13. Bb2 {[%clk 0:02:56.7]} 13... Bg4 {[%clk 0:02:35.1]} 14. h3
{[%clk 0:02:54.6]} 14... Bxf3 {[%clk 0:02:34]} 15. Bxf3 {[%clk 0:02:55.5]} 15...
c6 {[%clk 0:02:29.7]} 16. Ne4 {[%clk 0:02:33.8]} 16... Nxe4 {[%clk 0:02:25.6]}
17. dxe4 {[%clk 0:02:33.4]} 17... Qd7 {[%clk 0:02:17.4]} 18. Bg4 {[%clk
0:02:28.5]} 18... Qc7 {[%clk 0:02:13.4]} 19. Qd3 {[%clk 0:02:26.1]} 19... Rad8
{[%clk 0:02:03.5]} 20. Ba3 {[%clk 0:02:18]} 20... b6 {[%clk 0:01:56.1]} 21. bxc6
{[%clk 0:02:00.2]} 21... Nxc6 {[%clk 0:01:55.7]} 22. Be6+ {[%clk 0:02:00.7]}
22... Kh8 {[%clk 0:01:55.2]} 23. Bd5 {[%clk 0:02:01.4]} 23... Nd4 {[%clk
0:01:53]} 24. Bb2 {[%clk 0:02:00.9]} 24... Nc6 {[%clk 0:01:15.8]} 25. Bc3 {[%clk
0:01:46.2]} 25... Nd4 {[%clk 0:00:58.6]} 26. Bxd4 {[%clk 0:01:37.8]} 26... exd4
{[%clk 0:00:59.5]} 27. g4 {[%clk 0:01:38.4]} 27... f3 {[%clk 0:00:52.5]} 28.
exf3 {[%clk 0:01:35.3]} 28... Qe7 {[%clk 0:00:50.2]} 29. Rxb6 {[%clk 0:01:28.2]}
29... Rf4 {[%clk 0:00:28.2]} 30. Kg2 {[%clk 0:01:25]} 30... Rdf8 {[%clk
0:00:26.1]} 31. Rfb1 {[%clk 0:01:08.3]} 31... Qf6 {[%clk 0:00:11.2]} 32. Rb8
{[%clk 0:01:04.6]} 32... h5 {[%clk 0:00:08.2]} 33. Rxf8+ {[%clk 0:01:03.7]}
33... Qxf8 {[%clk 0:00:09.1]} 34. e5 {[%clk 0:00:57.8]} 34... Kh7 {[%clk
0:00:01.8]} 35. gxh5 {[%clk 0:00:56.3]} 35... dxe5 {[%clk 0:00:02.1]} 36. Qxg6+
{[%clk 0:00:55.6]} 36... Kh8 {[%clk 0:00:02.4]} 37. Ra1 {[%clk 0:00:53.7]} 37...
Rf6 {[%clk 0:00:02.7]} 38. Qg4 {[%clk 0:00:48.5]} 38... Rd6 {[%clk 0:00:02.9]}
39. Ra8 {[%clk 0:00:47.9]} 39... Rd8 {[%clk 0:00:03.3]} 40. Ra7 {[%clk
0:00:42.3]} 40... d3 {[%clk 0:00:03.4]} 41. Qg6 {[%clk 0:00:37.4]} 41... d2
{[%clk 0:00:04]} 42. h6 {[%clk 0:00:37.7]} 42... Bxh6 {[%clk 0:00:02]} 43. Rh7#
{[%clk 0:00:38.1]} 1-0

[Event "Late-Titled-Tuesday-Blitz-July-09-2024"]
[Site "Chess.com"]
[Date "2024.07.09"]
[Round "9"]
[White "JAN2404"]
[Black "David_George21"]
[Result "0-1"]
[WhiteElo "2121"]
[BlackElo "2482"]
[TimeControl "180+1"]
[EndTime "15:43:59 PDT"]
[Termination "David_George21 won on time"]

1. e4 {[%clk 0:03:00.9]} 1... c5 {[%clk 0:02:56.6]} 2. d4 {[%clk 0:03:00.2]}
2... cxd4 {[%clk 0:02:56.5]} 3. c3 {[%clk 0:03:00.1]} 3... dxc3 {[%clk
0:02:57.4]} 4. Nxc3 {[%clk 0:03:00.3]} 4... Nc6 {[%clk 0:02:57.6]} 5. Nf3 {[%clk
0:03:00.2]} 5... a6 {[%clk 0:02:56.8]} 6. Bc4 {[%clk 0:02:58.2]} 6... d6 {[%clk
0:02:56.6]} 7. Bf4 {[%clk 0:02:47.5]} 7... Nf6 {[%clk 0:02:55.6]} 8. O-O {[%clk
0:02:46.5]} 8... Bg4 {[%clk 0:02:54.4]} 9. h3 {[%clk 0:02:40.9]} 9... Bxf3
{[%clk 0:02:50.3]} 10. Qxf3 {[%clk 0:02:39.5]} 10... e6 {[%clk 0:02:49.3]} 11.
Rfd1 {[%clk 0:02:37.4]} 11... Qc7 {[%clk 0:02:48.8]} 12. Bb3 {[%clk 0:02:24.5]}
12... Ne5 {[%clk 0:02:42.2]} 13. Bxe5 {[%clk 0:02:08]} 13... dxe5 {[%clk
0:02:41.1]} 14. Rac1 {[%clk 0:02:07.8]} 14... Bc5 {[%clk 0:02:33.3]} 15. Na4
{[%clk 0:01:36.5]} 15... b6 {[%clk 0:02:31.8]} 16. Nxc5 {[%clk 0:01:19.6]} 16...
bxc5 {[%clk 0:02:32.7]} 17. Ba4+ {[%clk 0:01:20]} 17... Ke7 {[%clk 0:02:31.1]}
18. Qe3 {[%clk 0:01:12.6]} 18... Rac8 {[%clk 0:02:24.2]} 19. Qg5 {[%clk
0:01:11.7]} 19... h6 {[%clk 0:02:13.5]} 20. Qh4 {[%clk 0:01:00]} 20... g5 {[%clk
0:02:08.2]} 21. Qg3 {[%clk 0:00:58.5]} 21... Rhd8 {[%clk 0:01:40.7]} 22. Rxd8
{[%clk 0:00:49.9]} 22... Rxd8 {[%clk 0:01:39.7]} 23. Qe3 {[%clk 0:00:50.5]}
23... Rd4 {[%clk 0:01:36.4]} 24. Bc2 {[%clk 0:00:28.2]} 24... Qa5 {[%clk
0:01:20.7]} 25. Qb3 {[%clk 0:00:21.9]} 25... Qb4 {[%clk 0:01:12.4]} 26. f3
{[%clk 0:00:08.5]} 26... Qxb3 {[%clk 0:01:05]} 27. Bxb3 {[%clk 0:00:08.3]} 27...
Kd6 {[%clk 0:01:05]} 28. Kf2 {[%clk 0:00:07.5]} 28... Nd7 {[%clk 0:01:03]} 29.
Ke3 {[%clk 0:00:06.7]} 29... Nb6 {[%clk 0:01:02]} 30. a3 {[%clk 0:00:02.1]}
30... f5 {[%clk 0:00:51.7]} 31. g3 {[%clk 0:00:01.4]} 31... f4+ {[%clk
0:00:49.5]} 32. gxf4 {[%clk 0:00:01.6]} 32... exf4+ {[%clk 0:00:50.4]} 33. Ke2
{[%clk 0:00:02.2]} 33... Nd7 {[%clk 0:00:38.4]} 34. Rc2 {[%clk 0:00:02.8]} 34...
Ne5 {[%clk 0:00:38]} 35. Ba2 {[%clk 0:00:02.5]} 35... Rd3 {[%clk 0:00:33.1]} 36.
Rd2 {[%clk 0:00:02.6]} 36... Rxd2+ {[%clk 0:00:32.4]} 37. Kxd2 {[%clk
0:00:02.1]} 37... Nxf3+ {[%clk 0:00:33.3]} 38. Ke2 {[%clk 0:00:02.1]} 38... Nd4+
{[%clk 0:00:32.9]} 39. Kd3 {[%clk 0:00:02.2]} 39... f3 {[%clk 0:00:31.7]} 40.
Bc4 {[%clk 0:00:01.5]} 40... a5 {[%clk 0:00:28.9]} 41. Ke3 {[%clk 0:00:01.9]}
41... h5 {[%clk 0:00:28.2]} 42. Kf2 {[%clk 0:00:01.4]} 42... Ke5 {[%clk
0:00:26.5]} 43. Ke3 {[%clk 0:00:01.3]} 43... g4 {[%clk 0:00:25.9]} 0-1

[Event "Late-Titled-Tuesday-Blitz-July-09-2024"]
[Site "Chess.com"]
[Date "2024.07.09"]
[Round "9"]
[White "Andrei_Skvortsov"]
[Black "HATilay"]
[Result "1-0"]
[WhiteElo "2787"]
[BlackElo "2575"]
[TimeControl "180+1"]
[EndTime "15:44:01 PDT"]
[Termination "Andrei_Skvortsov won on time"]

1. g3 {[%clk 0:03:00.9]} 1... Nf6 {[%clk 0:02:52.7]} 2. Bg2 {[%clk 0:03:00.4]}
2... d5 {[%clk 0:02:52.3]} 3. Nf3 {[%clk 0:02:59.9]} 3... g6 {[%clk 0:02:48.9]}
4. c4 {[%clk 0:03:00.2]} 4... Bg7 {[%clk 0:02:48.5]} 5. O-O {[%clk 0:02:59.4]}
5... O-O {[%clk 0:02:49]} 6. cxd5 {[%clk 0:02:59.1]} 6... Nxd5 {[%clk
0:02:48.9]} 7. Nc3 {[%clk 0:02:59.6]} 7... Nb6 {[%clk 0:02:49.3]} 8. d4 {[%clk
0:02:56.9]} 8... Nc6 {[%clk 0:02:41.3]} 9. e3 {[%clk 0:02:55.7]} 9... Bd7 {[%clk
0:02:35.8]} 10. h3 {[%clk 0:02:50.3]} 10... a5 {[%clk 0:02:31.7]} 11. d5 {[%clk
0:02:48.4]} 11... Nb4 {[%clk 0:02:30.7]} 12. a3 {[%clk 0:02:47.4]} 12... Na6
{[%clk 0:02:29.1]} 13. e4 {[%clk 0:02:44]} 13... e6 {[%clk 0:02:25.5]} 14. Qc2
{[%clk 0:02:38]} 14... exd5 {[%clk 0:02:24.2]} 15. Nxd5 {[%clk 0:02:35.8]} 15...
Nxd5 {[%clk 0:02:24.1]} 16. exd5 {[%clk 0:02:36]} 16... Bf5 {[%clk 0:02:22.8]}
17. Qc4 {[%clk 0:02:34.9]} 17... Re8 {[%clk 0:02:07.9]} 18. Bf4 {[%clk
0:02:22.2]} 18... Qd7 {[%clk 0:02:05.2]} 19. g4 {[%clk 0:02:19]} 19... Be4
{[%clk 0:01:44.4]} 20. Rad1 {[%clk 0:02:15.6]} 20... c6 {[%clk 0:01:11.1]} 21.
dxc6 {[%clk 0:02:11.3]} 21... Qxc6 {[%clk 0:01:11.2]} 22. Qxc6 {[%clk
0:02:10.5]} 22... Bxc6 {[%clk 0:01:11.1]} 23. Nd4 {[%clk 0:02:06]} 23... Bxg2
{[%clk 0:00:57.9]} 24. Kxg2 {[%clk 0:02:06.9]} 24... Rad8 {[%clk 0:00:35.6]} 25.
Be3 {[%clk 0:02:07.2]} 25... Rd5 {[%clk 0:00:35.4]} 26. Nf3 {[%clk 0:01:38.5]}
26... Rb5 {[%clk 0:00:35.6]} 27. Rd2 {[%clk 0:01:26.5]} 27... Rxb2 {[%clk
0:00:33.9]} 28. Rxb2 {[%clk 0:01:25.6]} 28... Bxb2 {[%clk 0:00:34.8]} 29. a4
{[%clk 0:01:17.8]} 29... Re4 {[%clk 0:00:27.8]} 30. Rb1 {[%clk 0:01:17.9]} 30...
Rb4 {[%clk 0:00:19.9]} 31. g5 {[%clk 0:01:06.8]} 31... Nc7 {[%clk 0:00:10.7]}
32. Rd1 {[%clk 0:01:01]} 32... Ne6 {[%clk 0:00:10]} 33. Rd7 {[%clk 0:00:58.5]}
33... Rxa4 {[%clk 0:00:08.2]} 34. Rxb7 {[%clk 0:00:58.1]} 34... Rb4 {[%clk
0:00:08.9]} 35. Ra7 {[%clk 0:00:58.3]} 35... a4 {[%clk 0:00:09.5]} 36. Bd2
{[%clk 0:00:50.7]} 36... Rc4 {[%clk 0:00:07.6]} 37. h4 {[%clk 0:00:38.8]} 37...
a3 {[%clk 0:00:08]} 38. h5 {[%clk 0:00:38.6]} 38... gxh5 {[%clk 0:00:08.5]} 39.
Be3 {[%clk 0:00:34.8]} 39... Kg7 {[%clk 0:00:08.9]} 40. Nd2 {[%clk 0:00:32.9]}
40... Rb4 {[%clk 0:00:08.3]} 41. Nf1 {[%clk 0:00:27.2]} 41... Kg6 {[%clk
0:00:08.7]} 42. Ng3 {[%clk 0:00:25.6]} 42... h4 {[%clk 0:00:08.9]} 43. Ne2
{[%clk 0:00:25.2]} 1-0

[Event "Late-Titled-Tuesday-Blitz-July-09-2024"]
[Site "Chess.com"]
[Date "2024.07.09"]
[Round "9"]
[White "klercaku"]
[Black "zacachess"]
[Result "0-1"]
[WhiteElo "2381"]
[BlackElo "2494"]
[TimeControl "180+1"]
[EndTime "15:44:02 PDT"]
[Termination "zacachess won by resignation"]

1. e4 {[%clk 0:03:00.9]} 1... c5 {[%clk 0:02:56.1]} 2. Nf3 {[%clk 0:03:00.6]}
2... d6 {[%clk 0:02:56.6]} 3. d4 {[%clk 0:03:01]} 3... cxd4 {[%clk 0:02:57.5]}
4. Nxd4 {[%clk 0:03:01.4]} 4... Nf6 {[%clk 0:02:58]} 5. Nc3 {[%clk 0:03:01.4]}
5... Nc6 {[%clk 0:02:58.5]} 6. Be2 {[%clk 0:03:01.5]} 6... e5 {[%clk 0:02:58.3]}
7. Nb3 {[%clk 0:03:00.3]} 7... Be7 {[%clk 0:02:58]} 8. Be3 {[%clk 0:03:00.7]}
8... Be6 {[%clk 0:02:58]} 9. O-O {[%clk 0:03:00.6]} 9... O-O {[%clk 0:02:57.8]}
10. f4 {[%clk 0:03:01.2]} 10... a5 {[%clk 0:02:57.4]} 11. f5 {[%clk 0:02:58.2]}
11... Bd7 {[%clk 0:02:56.6]} 12. a4 {[%clk 0:02:55.7]} 12... Nb4 {[%clk
0:02:56.2]} 13. g4 {[%clk 0:02:54.2]} 13... Bc6 {[%clk 0:02:55.3]} 14. Bf3
{[%clk 0:02:49.5]} 14... d5 {[%clk 0:02:53.5]} 15. exd5 {[%clk 0:02:46.7]} 15...
Nfxd5 {[%clk 0:02:53.2]} 16. Nxd5 {[%clk 0:02:46.3]} 16... Nxd5 {[%clk 0:02:52]}
17. Bd2 {[%clk 0:02:22.2]} 17... Qb6+ {[%clk 0:02:33.9]} 18. Kh1 {[%clk
0:02:19.2]} 18... Rad8 {[%clk 0:02:29.4]} 19. Bxa5 {[%clk 0:02:07.4]} 19... Qa7
{[%clk 0:02:26.2]} 20. Bxd8 {[%clk 0:02:05.4]} 20... Rxd8 {[%clk 0:02:27.1]} 21.
Qe2 {[%clk 0:02:03.4]} 21... Nf4 {[%clk 0:02:22.1]} 22. Qf2 {[%clk 0:01:58.3]}
22... Qa6 {[%clk 0:01:53.8]} 23. Rad1 {[%clk 0:01:34]} 23... Rxd1 {[%clk
0:01:26.8]} 24. Rxd1 {[%clk 0:01:27.6]} 24... e4 {[%clk 0:01:26.5]} 25. Bg2
{[%clk 0:01:18.8]} 25... Nxg2 {[%clk 0:01:20.8]} 26. Nc5 {[%clk 0:00:36.8]}
26... Qb6 {[%clk 0:01:13.7]} 27. a5 {[%clk 0:00:29.2]} 27... Qxa5 {[%clk
0:00:41.4]} 28. Nxb7 {[%clk 0:00:15.7]} 28... Qc7 {[%clk 0:00:28.1]} 29. Qg3
{[%clk 0:00:06.1]} 29... Nf4 {[%clk 0:00:24.6]} 30. Re1 {[%clk 0:00:02.9]} 30...
e3+ {[%clk 0:00:21.7]} 31. Kg1 {[%clk 0:00:03.3]} 31... e2 {[%clk 0:00:21.3]}
32. h4 {[%clk 0:00:01.7]} 32... Bxb7 {[%clk 0:00:19.4]} 33. Kh2 {[%clk 0:00:02]}
33... Bd6 {[%clk 0:00:19.3]} 34. Kg1 {[%clk 0:00:02.4]} 34... h6 {[%clk
0:00:18.1]} 35. g5 {[%clk 0:00:02.4]} 35... h5 {[%clk 0:00:17.6]} 36. g6 {[%clk
0:00:01.1]} 36... Nxg6 {[%clk 0:00:17.1]} 37. fxg6 {[%clk 0:00:01.4]} 37... Bxg3
{[%clk 0:00:16.7]} 38. Rxe2 {[%clk 0:00:02.3]} 0-1